[Event "GMT Biel Chess Festival rapid"]
[Site "Biel/Bienne, Switzerland"]
[Date "2020.07.19"]
[Round "3.1"]
[White "Studer, Noël"]
[Black "Harikrishna, Pentala"]
[Result "1/2-1/2"]
[WhiteElo "2437"]
[BlackElo "2690"]
[PlyCount "90"]
[EventDate "2020.??.??"]
[EventType "rapid"]
[TimeControl "15+5"]
[WhiteClock "0:00:14"]
[BlackClock "0:00:25"]

1. d4 {[%emt 0:00:00]} d5 {[%emt 0:00:00]} 2. c4 {[%emt 0:00:00]} dxc4 {
[%emt 0:00:00]} 3. Nf3 {[%emt 0:00:00]} Nf6 {[%emt 0:00:00]} 4. e3 {[%emt 0:00:
00]} Bg4 {[%emt 0:00:00]} 5. Bxc4 {[%emt 0:00:00]} e6 {[%emt 0:00:00]} 6. h3 {
[%emt 0:00:00]} Bh5 {[%emt 0:00:00]} 7. Nc3 {[%emt 0:00:00]} Be7 {[%emt 0:00:
00]} 8. O-O {[%emt 0:00:00]} Nbd7 {[%emt 0:00:00]} 9. Re1 {[%emt 0:00:00]} O-O
{[%emt 0:00:00]} 10. g4 {[%emt 0:00:00]} Bg6 {[%emt 0:00:00]} 11. Nh4 {[%emt 0:
00:00]} c5 {[%emt 0:00:00]} 12. Nxg6 {[%emt 0:00:00]} hxg6 {[%emt 0:00:00]} 13.
Bf1 {[%emt 0:00:00]} cxd4 {[%emt 0:00:00]} 14. Qxd4 {[%emt 0:00:00]} Nc5 {
[%emt 0:00:00]} 15. Bg2 {[%emt 0:00:00]} Rb8 {[%emt 0:00:00]} 16. Rd1 {[%emt 0:
00:00]} Qc8 {[%emt 0:00:00]} 17. Qc4 {[%emt 0:00:00]} a6 {[%emt 0:00:00]} 18.
Bd2 {[%emt 0:00:00]} b5 {[%emt 0:00:00]} 19. Qf1 {[%emt 0:00:00]} Rd8 {[%emt 0:
00:00]} 20. Ne2 {[%emt 0:00:00]} e5 {[%emt 0:00:00]} 21. Rac1 {[%emt 0:00:00]}
Qe6 {[%emt 0:00:00]} 22. b3 {[%emt 0:00:00]} b4 {[%emt 0:00:00]} 23. Ng3 {
[%emt 0:00:00]} a5 {[%emt 0:00:00]} 24. g5 {[%emt 0:00:05]} Nd5 {[%emt 0:00:00]
} 25. Qc4 {[%emt 0:00:32]} Nc3 {[%emt 0:00:00]} 26. Qxe6 {[%emt 0:00:54]} Nxe6
{[%emt 0:00:00]} 27. Bxc3 {[%emt 0:00:01]} Rxd1+ {[%emt 0:00:00]} 28. Rxd1 {
[%emt 0:00:01]} bxc3 {[%emt 0:00:00]} 29. Rc1 {[%emt 0:00:16]} Nxg5 {[%emt 0:
00:27]} 30. Rxc3 {[%emt 0:00:03]} Ne6 {[%emt 0:00:14]} 31. Bd5 {[%emt 0:00:18]}
Nc5 {[%emt 0:00:08]} 32. Ne4 {[%emt 0:00:27]} Na6 {[%emt 0:00:25]} 33. Bc4 {
[%emt 0:00:13]} Rb6 {[%emt 0:00:21]} 34. Rd3 {[%emt 0:00:02]} Nb8 {[%emt 0:00:
34]} 35. Nc3 {[%emt 0:00:02]} Rd6 {[%emt 0:00:28]} 36. Rxd6 {[%emt 0:00:08]}
Bxd6 {[%emt 0:00:01]} 37. Bd5 {[%emt 0:00:06]} Na6 {[%emt 0:00:10]} 38. Bc4 {
[%emt 0:00:05]} Nb4 {[%emt 0:00:09]} 39. a3 {[%emt 0:00:04]} Nc2 {[%emt 0:00:
08]} 40. a4 {[%emt 0:00:05]} Kf8 {[%emt 0:00:04]} 41. Nd5 {[%emt 0:00:02]} f5 {
[%emt 0:00:15]} 42. Bd3 {[%emt 0:00:04]} Ne1 {[%emt 0:00:09]} 43. Be2 {[%emt 0:
00:05]} Nc2 {[%emt 0:00:06]} 44. Bd3 {[%emt 0:00:01]} Nb4 {[%emt 0:00:06]} 45.
Nxb4 {[%emt 0:00:01]} Bxb4 {[%emt 0:00:01]} 1/2-1/2

[Event "GMT Biel Chess Festival rapid"]
[Site "Biel/Bienne, Switzerland"]
[Date "2020.07.19"]
[Round "3.2"]
[White "Naiditsch, Arkadij"]
[Black "Keymer, Vincent"]
[Result "0-1"]
[WhiteElo "2584"]
[BlackElo "2487"]
[PlyCount "48"]
[EventDate "2020.??.??"]
[EventType "rapid"]
[TimeControl "15+5"]
[WhiteClock "0:04:40"]
[BlackClock "0:00:10"]

1. d4 {[%emt 0:00:00]} d5 {[%emt 0:00:00]} 2. Nf3 {[%emt 0:00:00]} Nf6 {
[%emt 0:00:00]} 3. e3 {[%emt 0:00:00]} Bf5 {[%emt 0:00:00]} 4. Nbd2 {[%emt 0:
00:00]} h6 {[%emt 0:00:00]} 5. Ne5 {[%emt 0:00:00]} e6 {[%emt 0:00:00]} 6. g4 {
[%emt 0:00:00]} Bh7 {[%emt 0:00:00]} 7. h4 {[%emt 0:00:00]} Nfd7 {[%emt 0:00:
00]} 8. Ndf3 {[%emt 0:00:00]} Nxe5 {[%emt 0:00:00]} 9. Nxe5 {[%emt 0:00:00]}
Nd7 {[%emt 0:00:00]} 10. Bd3 {[%emt 0:00:00]} Bxd3 {[%emt 0:00:00]} 11. cxd3 {
[%emt 0:00:00]} Bd6 {[%emt 0:00:00]} 12. Nxd7 {[%emt 0:00:00]} Qxd7 {[%emt 0:
00:00]} 13. Bd2 {[%emt 0:00:00]} O-O-O {[%emt 0:00:00]} 14. h5 {[%emt 0:00:00]}
Rhe8 {[%emt 0:00:00]} 15. Bc3 {[%emt 0:00:00]} f6 {[%emt 0:00:00]} 16. Qf3 {
[%emt 0:00:00]} Qb5 {[%emt 0:00:00]} 17. O-O-O {[%emt 0:00:00]} e5 {[%emt 0:00:
00]} 18. Qf5+ {[%emt 0:00:00]} Kb8 {[%emt 0:00:00]} 19. Rhe1 {[%emt 0:00:00]}
a5 {[%emt 0:00:00]} 20. Kb1 {[%emt 0:01:14]} a4 {[%emt 0:00:00]} 21. e4 {
[%emt 0:00:27]} a3 {[%emt 0:00:00]} 22. dxe5 {[%emt 0:00:15]} Bb4 {[%emt 0:00:
00]} 23. Bxb4 {[%emt 0:00:07]} Qxb4 {[%emt 0:00:00]} 24. Re2 {[%emt 0:00:02]}
Rxe5 {[%emt 0:00:00]} 0-1

[Event "GMT Biel Chess Festival rapid"]
[Site "Biel/Bienne, Switzerland"]
[Date "2020.07.19"]
[Round "3.3"]
[White "Adams, Michael"]
[Black "Wojtaszek, Radoslaw"]
[Result "1/2-1/2"]
[WhiteElo "2689"]
[BlackElo "2662"]
[PlyCount "61"]
[EventDate "2020.??.??"]
[EventType "rapid"]
[TimeControl "15+5"]
[WhiteClock "0:04:00"]
[BlackClock "0:03:55"]

1. e4 {[%emt 0:00:00]} c5 {[%emt 0:00:00]} 2. Nf3 {[%emt 0:00:00]} d6 {[%emt 0:
00:00]} 3. Bb5+ {[%emt 0:00:00]} Nd7 {[%emt 0:00:00]} 4. O-O {[%emt 0:00:00]}
a6 {[%emt 0:00:00]} 5. Bxd7+ {[%emt 0:00:00]} Bxd7 {[%emt 0:00:00]} 6. d4 {
[%emt 0:00:00]} cxd4 {[%emt 0:00:00]} 7. Qxd4 {[%emt 0:00:00]} e5 {[%emt 0:00:
00]} 8. Qd3 {[%emt 0:00:00]} h6 {[%emt 0:00:00]} 9. Nc3 {[%emt 0:00:00]} Rc8 {
[%emt 0:00:00]} 10. Nd2 {[%emt 0:00:00]} Qc7 {[%emt 0:00:00]} 11. Rd1 {[%emt 0:
00:00]} Nf6 {[%emt 0:00:00]} 12. Nf1 {[%emt 0:00:00]} Bg4 {[%emt 0:00:00]} 13.
Re1 {[%emt 0:00:00]} Be7 {[%emt 0:00:00]} 14. Ne3 {[%emt 0:00:00]} Be6 {
[%emt 0:00:00]} 15. a4 {[%emt 0:00:00]} O-O {[%emt 0:00:00]} 16. Bd2 {[%emt 0:
00:00]} Qc5 {[%emt 0:00:00]} 17. Red1 {[%emt 0:00:00]} Bd8 {[%emt 0:00:00]} 18.
h3 {[%emt 0:00:00]} Bb6 {[%emt 0:00:00]} 19. Qe2 {[%emt 0:00:00]} Qc6 {[%emt 0:
00:00]} 20. Qf3 {[%emt 0:00:00]} Bxe3 {[%emt 0:00:00]} 21. Bxe3 {[%emt 0:00:00]
} Kh7 {[%emt 0:00:00]} 22. a5 {[%emt 0:00:00]} Rfd8 {[%emt 0:00:00]} 23. Bb6 {
[%emt 0:00:00]} Rd7 {[%emt 0:00:00]} 24. Rd3 {[%emt 0:00:00]} d5 {[%emt 0:00:
00]} 25. exd5 {[%emt 0:00:00]} Nxd5 {[%emt 0:00:00]} 26. Nxd5 {[%emt 0:00:00]}
Rxd5 {[%emt 0:00:00]} 27. Rc3 {[%emt 0:00:00]} Qd7 {[%emt 0:00:00]} 28. Rxc8 {
[%emt 0:00:00]} Qxc8 {[%emt 0:00:00]} 29. Rd1 {[%emt 0:00:00]} Qd7 {[%emt 0:00:
00]} 30. Rxd5 {[%emt 0:00:00]} Qxd5 {[%emt 0:00:00]} 31. Qxd5 {[%emt 0:00:03]}
1/2-1/2

[Event "GMT Biel Chess Festival rapid"]
[Site "Biel/Bienne, Switzerland"]
[Date "2020.07.19"]
[Round "3.4"]
[White "Anton Guijarro, David"]
[Black "Édouard, Romain"]
[Result "1/2-1/2"]
[WhiteElo "2718"]
[BlackElo "2654"]
[PlyCount "106"]
[EventDate "2020.??.??"]
[EventType "rapid"]
[TimeControl "15+5"]
[WhiteClock "0:00:24"]
[BlackClock "0:00:12"]

1. Nf3 {[%emt 0:00:00]} c5 {[%emt 0:00:00]} 2. c4 {[%emt 0:00:00]} Nc6 {
[%emt 0:00:00]} 3. Nc3 {[%emt 0:00:00]} Nf6 {[%emt 0:00:00]} 4. g3 {[%emt 0:00:
00]} e6 {[%emt 0:00:00]} 5. Bg2 {[%emt 0:00:00]} d5 {[%emt 0:00:00]} 6. cxd5 {
[%emt 0:00:00]} exd5 {[%emt 0:00:00]} 7. d4 {[%emt 0:00:00]} Be7 {[%emt 0:00:
00]} 8. O-O {[%emt 0:00:00]} O-O {[%emt 0:00:00]} 9. dxc5 {[%emt 0:00:00]} Bxc5
{[%emt 0:00:00]} 10. Na4 {[%emt 0:00:00]} Be7 {[%emt 0:00:00]} 11. Be3 {
[%emt 0:00:00]} Re8 {[%emt 0:00:00]} 12. Rc1 {[%emt 0:00:00]} Bg4 {[%emt 0:00:
00]} 13. h3 {[%emt 0:00:00]} Bh5 {[%emt 0:00:00]} 14. Nd4 {[%emt 0:00:00]} Nxd4
{[%emt 0:00:00]} 15. Bxd4 {[%emt 0:00:00]} Bb4 {[%emt 0:00:00]} 16. Bf3 {
[%emt 0:00:00]} Bxf3 {[%emt 0:00:00]} 17. exf3 {[%emt 0:00:00]} b6 {[%emt 0:00:
00]} 18. Kg2 {[%emt 0:00:00]} Nd7 {[%emt 0:00:00]} 19. Qb3 {[%emt 0:00:00]} Bc5
{[%emt 0:00:00]} 20. Bxc5 {[%emt 0:00:00]} Nxc5 {[%emt 0:00:00]} 21. Nxc5 {
[%emt 0:00:00]} bxc5 {[%emt 0:00:00]} 22. Rxc5 {[%emt 0:00:00]} Rb8 {[%emt 0:
00:00]} 23. Rxd5 {[%emt 0:00:00]} Rxb3 {[%emt 0:00:00]} 24. Rxd8 {[%emt 0:00:
00]} Rxd8 {[%emt 0:00:00]} 25. axb3 {[%emt 0:00:00]} Rd2 {[%emt 0:00:00]} 26.
Ra1 {[%emt 0:00:14]} Rxb2 {[%emt 0:00:00]} 27. Rxa7 {[%emt 0:00:02]} g5 {
[%emt 0:00:00]} 28. Rb7 {[%emt 0:00:04]} Kg7 {[%emt 0:00:00]} 29. Rb6 {[%emt 0:
00:26]} h5 {[%emt 0:00:00]} 30. f4 {[%emt 0:00:15]} gxf4 {[%emt 0:00:01]} 31.
gxf4 {[%emt 0:00:04]} h4 {[%emt 0:00:34]} 32. f5 {[%emt 0:00:24]} Kh7 {[%emt 0:
00:16]} 33. Kf3 {[%emt 0:00:05]} Kg7 {[%emt 0:00:06]} 34. b4 {[%emt 0:00:16]}
Kh7 {[%emt 0:00:12]} 35. b5 {[%emt 0:00:14]} Kg7 {[%emt 0:00:03]} 36. Kg4 {
[%emt 0:00:16]} Rxf2 {[%emt 0:00:43]} 37. Rc6 {[%emt 0:00:15]} Rb2 {[%emt 0:00:
35]} 38. b6 {[%emt 0:00:04]} Rb4+ {[%emt 0:00:46]} 39. Kg5 {[%emt 0:00:18]} Rb5
{[%emt 0:00:02]} 40. Rd6 {[%emt 0:00:15]} Rb4 {[%emt 0:00:11]} 41. f6+ {
[%emt 0:00:17]} Kh7 {[%emt 0:00:01]} 42. Kf5 {[%emt 0:00:02]} Rb5+ {[%emt 0:00:
09]} 43. Ke4 {[%emt 0:00:06]} Rb3 {[%emt 0:00:03]} 44. Kd5 {[%emt 0:00:09]}
Rxh3 {[%emt 0:00:04]} 45. Kc6 {[%emt 0:00:02]} Rc3+ {[%emt 0:00:03]} 46. Kd7 {
[%emt 0:00:04]} Rb3 {[%emt 0:00:06]} 47. Kc7 {[%emt 0:00:06]} h3 {[%emt 0:00:
02]} 48. b7 {[%emt 0:00:05]} h2 {[%emt 0:00:05]} 49. Rd1 {[%emt 0:00:03]} Rc3+
{[%emt 0:00:03]} 50. Kd8 {[%emt 0:00:09]} Rb3 {[%emt 0:00:05]} 51. Kc8 {
[%emt 0:00:03]} Rc3+ {[%emt 0:00:01]} 52. Kd8 {[%emt 0:00:09]} Rb3 {[%emt 0:00:
02]} 53. Kc8 {[%emt 0:00:01]} Rc3+ {[%emt 0:00:03]} 1/2-1/2

[Event "GMT Biel Chess Festival rapid"]
[Site "Biel/Bienne, Switzerland"]
[Date "????.??.??"]
[Round "4.1"]
[White "Anton Guijarro, David"]
[Black "Studer, Noël"]
[Result "0-1"]
[WhiteElo "2718"]
[BlackElo "2437"]
[PlyCount "92"]
[EventType "rapid"]
[TimeControl "15+5"]
[WhiteClock "0:00:16"]
[BlackClock "0:00:10"]

1. Nf3 {[%emt 0:00:00]} d5 {[%emt 0:00:00]} 2. c4 {[%emt 0:00:00]} e6 {[%emt 0:
00:00]} 3. e3 {[%emt 0:00:00]} Nf6 {[%emt 0:00:00]} 4. d4 {[%emt 0:00:00]} c5 {
[%emt 0:00:00]} 5. cxd5 {[%emt 0:00:00]} exd5 {[%emt 0:00:00]} 6. Bb5+ {
[%emt 0:00:00]} Nbd7 {[%emt 0:00:00]} 7. dxc5 {[%emt 0:00:00]} Bxc5 {[%emt 0:
00:00]} 8. O-O {[%emt 0:00:00]} O-O {[%emt 0:00:00]} 9. Nc3 {[%emt 0:00:00]} a6
{[%emt 0:00:00]} 10. Be2 {[%emt 0:00:00]} Nb8 {[%emt 0:00:00]} 11. b3 {[%emt 0:
00:00]} Nc6 {[%emt 0:00:00]} 12. Bb2 {[%emt 0:00:00]} Ba7 {[%emt 0:00:00]} 13.
Rc1 {[%emt 0:00:00]} Re8 {[%emt 0:00:00]} 14. Na4 {[%emt 0:00:00]} Ne4 {
[%emt 0:00:00]} 15. Nd4 {[%emt 0:00:00]} Qg5 {[%emt 0:00:00]} 16. f4 {[%emt 0:
00:00]} Qh6 {[%emt 0:00:00]} 17. Bf3 {[%emt 0:00:00]} Qd6 {[%emt 0:00:00]} 18.
Re1 {[%emt 0:00:00]} Bd7 {[%emt 0:00:00]} 19. Nxc6 {[%emt 0:00:00]} bxc6 {
[%emt 0:00:00]} 20. Be5 {[%emt 0:00:00]} Rxe5 {[%emt 0:00:27]} 21. fxe5 {
[%emt 0:00:00]} Qh6 {[%emt 0:00:04]} 22. Qe2 {[%emt 0:00:56]} Re8 {[%emt 0:01:
11]} 23. Bxe4 {[%emt 0:00:07]} dxe4 {[%emt 0:00:01]} 24. Nc5 {[%emt 0:00:23]}
Bc8 {[%emt 0:00:03]} 25. b4 {[%emt 0:00:29]} Rxe5 {[%emt 0:00:08]} 26. Rcd1 {
[%emt 0:00:06]} Bb6 {[%emt 0:00:02]} 27. Rd4 {[%emt 0:00:10]} Bc7 {[%emt 0:00:
08]} 28. g3 {[%emt 0:00:02]} Qg6 {[%emt 0:00:06]} 29. Red1 {[%emt 0:00:07]} Re8
{[%emt 0:00:13]} 30. Qf2 {[%emt 0:00:06]} h5 {[%emt 0:00:06]} 31. Kf1 {[%emt 0:
00:11]} Kh7 {[%emt 0:00:07]} 32. R1d2 {[%emt 0:00:05]} a5 {[%emt 0:00:05]} 33.
a3 {[%emt 0:00:03]} axb4 {[%emt 0:00:04]} 34. axb4 {[%emt 0:00:01]} Bh3+ {
[%emt 0:00:03]} 35. Ke1 {[%emt 0:00:05]} Bg4 {[%emt 0:00:09]} 36. Ra2 {[%emt 0:
00:05]} Bf3 {[%emt 0:00:04]} 37. Ra6 {[%emt 0:00:13]} Be5 {[%emt 0:00:01]} 38.
Qd2 {[%emt 0:00:05]} h4 {[%emt 0:00:04]} 39. Nd7 {[%emt 0:00:08]} Bxd4 {
[%emt 0:00:09]} 40. Qxd4 {[%emt 0:00:03]} hxg3 {[%emt 0:00:01]} 41. hxg3 {
[%emt 0:00:02]} Qxg3+ {[%emt 0:00:02]} 42. Kd2 {[%emt 0:00:01]} Qf2+ {[%emt 0:
00:12]} 43. Kc3 {[%emt 0:00:04]} Qe1+ {[%emt 0:00:03]} 44. Kb3 {[%emt 0:00:12]}
Qb1+ {[%emt 0:00:11]} 45. Ka3 {[%emt 0:00:09]} Qd3+ {[%emt 0:00:04]} 46. Qxd3 {
[%emt 0:00:02]} exd3 {[%emt 0:00:01]} 0-1

[Event "GMT Biel Chess Festival rapid"]
[Site "Biel/Bienne, Switzerland"]
[Date "????.??.??"]
[Round "4.3"]
[White "Wojtaszek, Radoslaw"]
[Black "Naiditsch, Arkadij"]
[Result "1-0"]
[WhiteElo "2662"]
[BlackElo "2584"]
[PlyCount "77"]
[EventType "rapid"]
[TimeControl "15+5"]
[WhiteClock "0:00:06"]
[BlackClock "0:01:15"]

1. d4 {[%emt 0:00:00]} Nf6 {[%emt 0:00:00]} 2. c4 {[%emt 0:00:00]} e6 {[%emt 0:
00:00]} 3. g3 {[%emt 0:00:00]} d5 {[%emt 0:00:00]} 4. Bg2 {[%emt 0:00:00]} Bb4+
{[%emt 0:00:00]} 5. Nd2 {[%emt 0:00:00]} O-O {[%emt 0:00:00]} 6. Ngf3 {[%emt 0:
00:00]} dxc4 {[%emt 0:00:00]} 7. Qc2 {[%emt 0:00:00]} b5 {[%emt 0:00:00]} 8. a4
{[%emt 0:00:00]} bxa4 {[%emt 0:00:00]} 9. O-O {[%emt 0:00:00]} Bb7 {[%emt 0:00:
00]} 10. Nxc4 {[%emt 0:00:00]} c5 {[%emt 0:00:00]} 11. Rd1 {[%emt 0:00:00]}
cxd4 {[%emt 0:00:00]} 12. Rxd4 {[%emt 0:00:00]} Qe7 {[%emt 0:00:00]} 13. Bg5 {
[%emt 0:00:00]} Nc6 {[%emt 0:00:00]} 14. Rf4 {[%emt 0:00:00]} Rfd8 {[%emt 0:00:
00]} 15. Qxa4 {[%emt 0:00:00]} h6 {[%emt 0:00:00]} 16. Bxf6 {[%emt 0:00:00]}
gxf6 {[%emt 0:00:00]} 17. Rh4 {[%emt 0:00:00]} Rac8 {[%emt 0:00:00]} 18. Ne3 {
[%emt 0:00:00]} f5 {[%emt 0:00:00]} 19. Rxh6 {[%emt 0:00:00]} Bc5 {[%emt 0:00:
47]} 20. Qb3 {[%emt 0:00:00]} Rb8 {[%emt 0:00:35]} 21. Ra4 {[%emt 0:00:00]} Nd4
{[%emt 0:00:12]} 22. Nxd4 {[%emt 0:00:00]} Bxd4 {[%emt 0:00:23]} 23. Rb4 {
[%emt 0:00:00]} Qg5 {[%emt 0:00:07]} 24. Rh4 {[%emt 0:00:00]} Bb6 {[%emt 0:00:
04]} 25. Bxb7 {[%emt 0:00:00]} Rxb7 {[%emt 0:00:01]} 26. Qc3 {[%emt 0:00:00]}
Qg7 {[%emt 0:00:05]} 27. Qc6 {[%emt 0:00:00]} Rbd7 {[%emt 0:00:10]} 28. Qf3 {
[%emt 0:00:00]} Bd4 {[%emt 0:00:01]} 29. b3 {[%emt 0:00:00]} Kf8 {[%emt 0:00:
01]} 30. Kg2 {[%emt 0:00:00]} a5 {[%emt 0:00:07]} 31. Rb5 {[%emt 0:00:03]} Bc3
{[%emt 0:00:08]} 32. Nc4 {[%emt 0:00:04]} Bf6 {[%emt 0:00:07]} 33. Rh5 {
[%emt 0:00:10]} Rd1 {[%emt 0:00:02]} 34. Rb7 {[%emt 0:00:08]} Rb1 {[%emt 0:00:
03]} 35. Qc6 {[%emt 0:00:16]} Qg6 {[%emt 0:00:01]} 36. Rh3 {[%emt 0:00:55]}
Rdd1 {[%emt 0:00:09]} 37. Qc8+ {[%emt 0:00:03]} Bd8 {[%emt 0:00:01]} 38. Ne5 {
[%emt 0:00:09]} Qg4 {[%emt 0:00:15]} 39. Nxg4 {[%emt 0:00:27]} 1-0

[Event "GMT Biel Chess Festival rapid"]
[Site "Biel/Bienne, Switzerland"]
[Date "????.??.??"]
[Round "4.4"]
[White "Keymer, Vincent"]
[Black "Harikrishna, Pentala"]
[Result "1/2-1/2"]
[WhiteElo "2487"]
[BlackElo "2690"]
[PlyCount "85"]
[EventType "rapid"]
[TimeControl "15+5"]
[WhiteClock "0:00:12"]
[BlackClock "0:00:12"]

1. Nf3 {[%emt 0:00:00]} Nf6 {[%emt 0:00:00]} 2. c4 {[%emt 0:00:00]} c5 {
[%emt 0:00:00]} 3. Nc3 {[%emt 0:00:00]} Nc6 {[%emt 0:00:00]} 4. g3 {[%emt 0:00:
00]} g6 {[%emt 0:00:00]} 5. Bg2 {[%emt 0:00:00]} d6 {[%emt 0:00:00]} 6. O-O {
[%emt 0:00:00]} Bg7 {[%emt 0:00:00]} 7. d4 {[%emt 0:00:00]} cxd4 {[%emt 0:00:
00]} 8. Nxd4 {[%emt 0:00:00]} Bd7 {[%emt 0:00:00]} 9. b3 {[%emt 0:00:00]} Qa5 {
[%emt 0:00:00]} 10. Bb2 {[%emt 0:00:00]} Qh5 {[%emt 0:00:00]} 11. Nd5 {[%emt 0:
00:00]} Nxd5 {[%emt 0:00:00]} 12. cxd5 {[%emt 0:00:00]} Nxd4 {[%emt 0:00:00]}
13. Bxd4 {[%emt 0:00:00]} O-O {[%emt 0:00:00]} 14. Bxg7 {[%emt 0:00:00]} Kxg7 {
[%emt 0:00:00]} 15. Qd4+ {[%emt 0:00:00]} Qe5 {[%emt 0:00:00]} 16. Qxe5+ {
[%emt 0:00:00]} dxe5 {[%emt 0:00:00]} 17. Rac1 {[%emt 0:00:00]} Rac8 {[%emt 0:
00:00]} 18. d6 {[%emt 0:00:00]} exd6 {[%emt 0:00:00]} 19. Bxb7 {[%emt 0:00:00]}
Rxc1 {[%emt 0:00:00]} 20. Rxc1 {[%emt 0:00:00]} Be6 {[%emt 0:00:00]} 21. Ba6 {
[%emt 0:00:00]} Rd8 {[%emt 0:00:00]} 22. Rc7 {[%emt 0:00:00]} Rd7 {[%emt 0:00:
00]} 23. Rxd7 {[%emt 0:00:00]} Bxd7 {[%emt 0:00:00]} 24. b4 {[%emt 0:00:00]}
Kf6 {[%emt 0:00:00]} 25. Bb7 {[%emt 0:00:02]} Ke7 {[%emt 0:00:00]} 26. f4 {
[%emt 0:00:21]} exf4 {[%emt 0:00:00]} 27. gxf4 {[%emt 0:00:02]} h6 {[%emt 0:00:
00]} 28. h4 {[%emt 0:00:44]} Kd8 {[%emt 0:00:12]} 29. Bd5 {[%emt 0:00:35]} f6 {
[%emt 0:00:22]} 30. Kf2 {[%emt 0:00:05]} Kc7 {[%emt 0:00:06]} 31. Ke3 {[%emt 0:
00:12]} Kb6 {[%emt 0:00:35]} 32. Bc4 {[%emt 0:00:28]} g5 {[%emt 0:00:32]} 33.
fxg5 {[%emt 0:00:02]} fxg5 {[%emt 0:00:01]} 34. hxg5 {[%emt 0:00:18]} hxg5 {
[%emt 0:00:02]} 35. a3 {[%emt 0:00:01]} Bc6 {[%emt 0:00:36]} 36. Bd3 {[%emt 0:
00:17]} Bb5 {[%emt 0:00:21]} 37. Bf5 {[%emt 0:00:02]} Bc4 {[%emt 0:00:07]} 38.
Bd7 {[%emt 0:00:03]} Bd5 {[%emt 0:00:03]} 39. Kd4 {[%emt 0:00:04]} Bg2 {
[%emt 0:00:11]} 40. e4 {[%emt 0:00:10]} Bf3 {[%emt 0:00:11]} 41. e5 {[%emt 0:
00:05]} dxe5+ {[%emt 0:00:12]} 42. Kxe5 {[%emt 0:00:02]} a5 {[%emt 0:00:02]}
43. Kd4 {[%emt 0:00:45]} 1/2-1/2

[Event "GMT Biel Chess Festival rapid"]
[Site "Biel/Bienne, Switzerland"]
[Date "????.??.??"]
[Round "5.1"]
[White "Studer, Noël"]
[Black "Keymer, Vincent"]
[Result "0-1"]
[WhiteElo "2437"]
[BlackElo "2487"]
[PlyCount "112"]
[EventType "rapid"]
[TimeControl "15+5"]
[WhiteClock "0:00:21"]
[BlackClock "0:00:14"]

1. d4 {[%emt 0:00:00]} Nf6 {[%emt 0:00:00]} 2. c4 {[%emt 0:00:00]} e6 {[%emt 0:
00:00]} 3. Nf3 {[%emt 0:00:00]} d5 {[%emt 0:00:00]} 4. g3 {[%emt 0:00:00]} Bb4+
{[%emt 0:00:00]} 5. Bd2 {[%emt 0:00:00]} Be7 {[%emt 0:00:00]} 6. Bg2 {[%emt 0:
00:00]} O-O {[%emt 0:00:00]} 7. O-O {[%emt 0:00:00]} c6 {[%emt 0:00:00]} 8. Qc2
{[%emt 0:00:00]} Nbd7 {[%emt 0:00:00]} 9. Bf4 {[%emt 0:00:00]} b6 {[%emt 0:00:
00]} 10. cxd5 {[%emt 0:00:00]} cxd5 {[%emt 0:00:00]} 11. Rc1 {[%emt 0:00:00]}
Bb7 {[%emt 0:00:00]} 12. Bc7 {[%emt 0:00:00]} Qe8 {[%emt 0:00:00]} 13. Qb3 {
[%emt 0:00:00]} Ne4 {[%emt 0:00:00]} 14. Nc3 {[%emt 0:00:00]} Rc8 {[%emt 0:00:
00]} 15. Nb5 {[%emt 0:00:00]} Ndc5 {[%emt 0:00:00]} 16. dxc5 {[%emt 0:00:00]}
bxc5 {[%emt 0:00:00]} 17. Be5 {[%emt 0:00:00]} c4 {[%emt 0:00:00]} 18. Qa4 {
[%emt 0:00:00]} f6 {[%emt 0:00:00]} 19. Bd4 {[%emt 0:00:00]} e5 {[%emt 0:00:00]
} 20. Bxa7 {[%emt 0:00:00]} Nd6 {[%emt 0:00:00]} 21. Nc3 {[%emt 0:00:00]} Qxa4
{[%emt 0:00:00]} 22. Nxa4 {[%emt 0:00:00]} Ra8 {[%emt 0:00:00]} 23. Bc5 {
[%emt 0:00:00]} Rxa4 {[%emt 0:00:00]} 24. Nd2 {[%emt 0:00:00]} Rb8 {[%emt 0:00:
00]} 25. b3 {[%emt 0:00:00]} cxb3 {[%emt 0:00:00]} 26. axb3 {[%emt 0:00:00]}
Rxa1 {[%emt 0:00:00]} 27. Rxa1 {[%emt 0:00:00]} Kf7 {[%emt 0:00:00]} 28. b4 {
[%emt 0:00:00]} Ra8 {[%emt 0:00:00]} 29. Rxa8 {[%emt 0:00:00]} Bxa8 {[%emt 0:
00:00]} 30. Nb3 {[%emt 0:00:00]} Nb5 {[%emt 0:00:00]} 31. Kf1 {[%emt 0:00:00]}
Bxc5 {[%emt 0:00:15]} 32. Nxc5 {[%emt 0:00:00]} Ke7 {[%emt 0:00:04]} 33. Ke1 {
[%emt 0:00:00]} Kd6 {[%emt 0:00:46]} 34. Kd2 {[%emt 0:00:00]} Nd4 {[%emt 0:00:
02]} 35. Nd3 {[%emt 0:00:00]} Nc6 {[%emt 0:00:34]} 36. Kc3 {[%emt 0:00:37]} e4
{[%emt 0:00:43]} 37. Nc5 {[%emt 0:00:29]} d4+ {[%emt 0:00:36]} 38. Kc4 {
[%emt 0:00:25]} f5 {[%emt 0:00:01]} 39. b5 {[%emt 0:00:21]} d3 {[%emt 0:00:01]}
40. exd3 {[%emt 0:00:54]} Ne5+ {[%emt 0:00:09]} 41. Kd4 {[%emt 0:00:00]} e3 {
[%emt 0:00:01]} 42. Bf1 {[%emt 0:00:40]} Nf3+ {[%emt 0:00:04]} 43. Kxe3 {
[%emt 0:00:01]} Nxh2 {[%emt 0:00:10]} 44. Be2 {[%emt 0:00:16]} Kxc5 {[%emt 0:
00:03]} 45. d4+ {[%emt 0:00:01]} Kd6 {[%emt 0:00:18]} 46. f3 {[%emt 0:00:07]}
g5 {[%emt 0:00:10]} 47. Bd3 {[%emt 0:00:10]} Ke6 {[%emt 0:00:06]} 48. Bc4+ {
[%emt 0:00:04]} Kf6 {[%emt 0:00:04]} 49. Be2 {[%emt 0:00:08]} h5 {[%emt 0:00:
04]} 50. b6 {[%emt 0:00:03]} Bb7 {[%emt 0:00:04]} 51. f4 {[%emt 0:00:03]} Ng4+
{[%emt 0:00:04]} 52. Kd2 {[%emt 0:00:09]} gxf4 {[%emt 0:00:02]} 53. gxf4 {
[%emt 0:00:00]} h4 {[%emt 0:00:02]} 54. Bf1 {[%emt 0:00:02]} Ke6 {[%emt 0:00:
06]} 55. Bc4+ {[%emt 0:00:10]} Kd6 {[%emt 0:00:03]} 56. Bd3 {[%emt 0:00:01]} h3
{[%emt 0:00:02]} 0-1